[Event "Titled Tuesday Blitz July 05 Late 2022"]
[White "Domingo Nunez, Ruben"]
[Black "Doluhanova, Evgeniya"]
[WhiteFideId "22245570"]
[BlackFideId "14112035"]
[WhiteElo "2373"]
[BlackElo "2076"]
[Result "1-0"]
[Round "02"]
[TimeControl "180+1"]
[Date "2022.07.06"]
[WhiteClock "0:00:22"]
[BlackClock "0:00:03"]

1. c4 {[%clk 0:03:00]}  Nf6 {[%clk 0:02:57]} 2. Nf3 {[%clk 0:03:00]}  e6 {[%clk 0:02:50]} 3. e3 {[%clk 0:03:00]}  d5 {[%clk 0:02:46]} 4. b3 {[%clk 0:03:01]}  dxc4 {[%clk 0:02:45]} 5. Bxc4 {[%clk 0:03:01]}  b6 {[%clk 0:02:46]} 6. O-O {[%clk 0:03:01]}  Ba6 {[%clk 0:02:46]} 7. Bb2 {[%clk 0:03:02]}  Bxc4 {[%clk 0:02:46]} 8. bxc4 {[%clk 0:03:03]}  Be7 {[%clk 0:02:44]} 9. d4 {[%clk 0:03:02]}  O-O {[%clk 0:02:43]} 10. Nc3 {[%clk 0:03:02]}  Nbd7 {[%clk 0:02:40]} 11. Qa4 {[%clk 0:02:56]}  Bd6 {[%clk 0:02:36]} 12. Rad1 {[%clk 0:02:56]}  Qe7 {[%clk 0:02:35]} 13. Nb5 {[%clk 0:02:49]}  a6 {[%clk 0:02:17]} 14. Nxd6 {[%clk 0:02:49]}  cxd6 {[%clk 0:02:17]} 15. Ba3 {[%clk 0:02:43]}  Rfc8 {[%clk 0:02:16]} 16. Rb1 {[%clk 0:02:24]}  Ne4 {[%clk 0:02:10]} 17. Rfc1 {[%clk 0:02:20]}  f5 {[%clk 0:01:59]} 18. Qd1 {[%clk 0:02:07]}  g5 {[%clk 0:01:57]} 19. Nd2 {[%clk 0:02:07]}  Nxd2 {[%clk 0:01:51]} 20. Qxd2 {[%clk 0:02:08]}  Ra7 {[%clk 0:01:42]} 21. Rb3 {[%clk 0:02:00]}  Rac7 {[%clk 0:01:41]} 22. Rbc3 {[%clk 0:02:00]}  Nf6 {[%clk 0:01:33]} 23. f3 {[%clk 0:01:56]}  Qd7 {[%clk 0:01:32]} 24. Qd1 {[%clk 0:01:50]}  b5 {[%clk 0:01:31]} 25. Qd3 {[%clk 0:01:43]}  Qc6 {[%clk 0:01:15]} 26. c5 {[%clk 0:01:26]}  d5 {[%clk 0:01:00]} 27. Bb4 {[%clk 0:01:25]}  Rg7 {[%clk 0:00:56]} 28. Ba5 {[%clk 0:01:14]}  g4 {[%clk 0:00:56]} 29. Kf2 {[%clk 0:01:14]}  gxf3 {[%clk 0:00:52]} 30. gxf3 {[%clk 0:01:15]}  Rg6 {[%clk 0:00:48]} 31. Rg1 {[%clk 0:00:59]}  Rxg1 {[%clk 0:00:45]} 32. Kxg1 {[%clk 0:01:00]}  Kf7 {[%clk 0:00:45]} 33. Rc2 {[%clk 0:01:00]}  Rg8+ {[%clk 0:00:44]} 34. Rg2 {[%clk 0:01:01]}  Rxg2+ {[%clk 0:00:43]} 35. Kxg2 {[%clk 0:01:02]}  Qe8 {[%clk 0:00:42]} 36. a4 {[%clk 0:01:00]}  Qg8+ {[%clk 0:00:37]} 37. Kf2 {[%clk 0:00:58]}  Qe8 {[%clk 0:00:25]} 38. Qf1 {[%clk 0:00:50]}  bxa4 {[%clk 0:00:23]} 39. Qxa6 {[%clk 0:00:49]}  a3 {[%clk 0:00:20]} 40. c6 {[%clk 0:00:48]}  a2 {[%clk 0:00:17]} 41. Bc3 {[%clk 0:00:49]}  Ng8 {[%clk 0:00:05]} 42. Qb7+ {[%clk 0:00:49]}  Ne7 {[%clk 0:00:04]} 43. c7 {[%clk 0:00:44]}  Qc8 {[%clk 0:00:04]} 44. Qa7 {[%clk 0:00:45]}  Nc6 {[%clk 0:00:04]} 45. Qb6 {[%clk 0:00:42]}  Ne7 {[%clk 0:00:02]} 46. h4 {[%clk 0:00:38]}  Ke8 {[%clk 0:00:02]} 47. Qb5+ {[%clk 0:00:34]}  Kf7 {[%clk 0:00:02]} 48. Qa5 {[%clk 0:00:34]}  Nc6 {[%clk 0:00:02]} 49. Qxa2 {[%clk 0:00:32]}  Qxc7 {[%clk 0:00:01]} 50. Kg2 {[%clk 0:00:29]}  Qe7 {[%clk 0:00:02]} 51. Kh3 {[%clk 0:00:28]}  Nd8 {[%clk 0:00:02]} 52. Qa4 {[%clk 0:00:24]}  Qe8 {[%clk 0:00:02]} 53. Qa7+ {[%clk 0:00:24]}  Qe7 {[%clk 0:00:02]} 54. Qb8 {[%clk 0:00:24]}  Qd7 {[%clk 0:00:02]} 55. Bb4 {[%clk 0:00:24]}  Nc6 {[%clk 0:00:03]} 56. Qf8+ {[%clk 0:00:23]}  Kg6 {[%clk 0:00:03]} 57. Qg8+ {[%clk 0:00:22]}  Qg7 {[%clk 0:00:03]} 58. Qe8+ {[%clk 0:00:22]}  Qf7 {[%clk 0:00:03]} 59. Qxc6 {[%clk 0:00:21]}  f4 {[%clk 0:00:03]} 60. e4 {[%clk 0:00:21]}  dxe4 {[%clk 0:00:03]} 61. Qxe4+ {[%clk 0:00:21]}  Kh5 {[%clk 0:00:03]} 62. Qe5+ {[%clk 0:00:21]}  Kh6 {[%clk 0:00:03]} 63. Qg5# {[%clk 0:00:22]} 1-0


[Site "https://www.chess.com"]

[Event "Titled Tuesday Blitz July 05 Late 2022"]
[White "Drygalov, Andrey"]
[Black "Ambartsumova, Karina"]
[WhiteFideId "24171735"]
[BlackFideId "4166299"]
[WhiteElo "2531"]
[BlackElo "2262"]
[Result "1-0"]
[Round "02"]
[TimeControl "180+1"]
[Date "2022.07.05"]
[WhiteClock "0:01:20"]
[BlackClock "0:00:05"]

1. e4 {[%clk 0:03:00]}  e5 {[%clk 0:02:59]} 2. Nf3 {[%clk 0:03:00]}  Nc6 {[%clk 0:02:59]} 3. Bc4 {[%clk 0:03:00]}  Bc5 {[%clk 0:02:58]} 4. O-O {[%clk 0:03:00]}  Nf6 {[%clk 0:02:58]} 5. d3 {[%clk 0:03:01]}  O-O {[%clk 0:02:57]} 6. c3 {[%clk 0:03:01]}  d5 {[%clk 0:02:52]} 7. exd5 {[%clk 0:03:02]}  Nxd5 {[%clk 0:02:53]} 8. a4 {[%clk 0:03:02]}  a6 {[%clk 0:02:50]} 9. Re1 {[%clk 0:03:01]}  Nb6 {[%clk 0:02:48]} 10. Bb3 {[%clk 0:02:58]}  Bg4 {[%clk 0:02:37]} 11. a5 {[%clk 0:02:57]}  Nd7 {[%clk 0:02:21]} 12. h3 {[%clk 0:02:56]}  Bh5 {[%clk 0:02:21]} 13. Nbd2 {[%clk 0:02:56]}  Re8 {[%clk 0:02:18]} 14. Ne4 {[%clk 0:02:56]}  Bf8 {[%clk 0:02:15]} 15. Bg5 {[%clk 0:02:56]}  Qc8 {[%clk 0:02:10]} 16. Ng3 {[%clk 0:02:53]}  Bg6 {[%clk 0:02:03]} 17. Nh4 {[%clk 0:02:53]}  Nc5 {[%clk 0:02:02]} 18. Nxg6 {[%clk 0:02:52]}  hxg6 {[%clk 0:01:58]} 19. Bc2 {[%clk 0:02:52]}  Qd7 {[%clk 0:01:53]} 20. Qf3 {[%clk 0:02:48]}  Ne6 {[%clk 0:01:41]} 21. Be3 {[%clk 0:02:47]}  Rad8 {[%clk 0:01:41]} 22. h4 {[%clk 0:02:44]}  f5 {[%clk 0:01:21]} 23. Bc1 {[%clk 0:02:36]}  Be7 {[%clk 0:01:20]} 24. h5 {[%clk 0:02:35]}  f4 {[%clk 0:01:19]} 25. Ne4 {[%clk 0:02:24]}  g5 {[%clk 0:01:08]} 26. Bb3 {[%clk 0:02:23]}  Kh8 {[%clk 0:01:05]} 27. h6 {[%clk 0:02:17]}  gxh6 {[%clk 0:01:03]} 28. Qh3 {[%clk 0:02:17]}  Bf8 {[%clk 0:00:33]} 29. Nf6 {[%clk 0:02:16]}  Qd6 {[%clk 0:00:22]} 30. Nxe8 {[%clk 0:02:15]}  Rxe8 {[%clk 0:00:23]} 31. d4 {[%clk 0:02:16]}  Bg7 {[%clk 0:00:21]} 32. Bc4 {[%clk 0:02:07]}  Ncd8 {[%clk 0:00:18]} 33. dxe5 {[%clk 0:02:07]}  Qc5 {[%clk 0:00:17]} 34. Bd3 {[%clk 0:02:01]}  Nf8 {[%clk 0:00:14]} 35. Bd2 {[%clk 0:01:53]}  Nf7 {[%clk 0:00:11]} 36. Qh5 {[%clk 0:01:34]}  Qe7 {[%clk 0:00:10]} 37. c4 {[%clk 0:01:28]}  Nxe5 {[%clk 0:00:09]} 38. Bc3 {[%clk 0:01:27]}  Nfd7 {[%clk 0:00:09]} 39. Bf5 {[%clk 0:01:23]}  Rd8 {[%clk 0:00:05]} 40. Rad1 {[%clk 0:01:20]} 1-0


[Site "https://www.chess.com"]

[Event "Titled Tuesday Blitz July 05 Late 2022"]
[White "Halkias, Stelios"]
[Black "Barria Santos, Jose Guilherme"]
[WhiteFideId "4201809"]
[BlackFideId "1939300"]
[WhiteElo "2453"]
[BlackElo "2263"]
[Result "1-0"]
[Round "02"]
[TimeControl "180+1"]
[Date "2022.07.06"]
[WhiteClock "0:00:24"]
[BlackClock "0:00:03"]

1. Nf3 {[%clk 0:03:00]}  Nf6 {[%clk 0:02:54]} 2. c4 {[%clk 0:03:00]}  e6 {[%clk 0:02:50]} 3. g3 {[%clk 0:02:54]}  d5 {[%clk 0:02:44]} 4. d4 {[%clk 0:02:54]}  Be7 {[%clk 0:02:40]} 5. Bg2 {[%clk 0:02:54]}  O-O {[%clk 0:02:35]} 6. b3 {[%clk 0:02:54]}  Bb4+ {[%clk 0:02:32]} 7. Bd2 {[%clk 0:02:52]}  Qe7 {[%clk 0:02:32]} 8. O-O {[%clk 0:02:51]}  b6 {[%clk 0:02:32]} 9. Qc2 {[%clk 0:02:50]}  Bb7 {[%clk 0:02:32]} 10. Bxb4 {[%clk 0:02:35]}  Qxb4 {[%clk 0:02:30]} 11. c5 {[%clk 0:02:28]}  Nc6 {[%clk 0:02:05]} 12. e3 {[%clk 0:01:58]}  bxc5 {[%clk 0:02:01]} 13. a3 {[%clk 0:01:56]}  Qb5 {[%clk 0:01:48]} 14. Nc3 {[%clk 0:01:38]}  Qa6 {[%clk 0:01:18]} 15. dxc5 {[%clk 0:01:32]}  Rab8 {[%clk 0:01:13]} 16. b4 {[%clk 0:01:24]}  Qc4 {[%clk 0:01:08]} 17. Rfc1 {[%clk 0:01:08]}  d4 {[%clk 0:01:03]} 18. Bf1 {[%clk 0:00:39]}  Qxc3 {[%clk 0:00:37]} 19. Qb1 {[%clk 0:00:39]}  Qxc1 {[%clk 0:00:20]} 20. Qxc1 {[%clk 0:00:38]}  dxe3 {[%clk 0:00:21]} 21. Qxe3 {[%clk 0:00:38]}  Rfd8 {[%clk 0:00:20]} 22. Bg2 {[%clk 0:00:34]}  Nd5 {[%clk 0:00:15]} 23. Qe1 {[%clk 0:00:34]}  Ba6 {[%clk 0:00:13]} 24. Rd1 {[%clk 0:00:31]}  Bb5 {[%clk 0:00:12]} 25. h4 {[%clk 0:00:31]}  a5 {[%clk 0:00:12]} 26. bxa5 {[%clk 0:00:28]}  Ra8 {[%clk 0:00:11]} 27. Nd4 {[%clk 0:00:27]}  Nxd4 {[%clk 0:00:08]} 28. Rxd4 {[%clk 0:00:27]}  Bc6 {[%clk 0:00:07]} 29. h5 {[%clk 0:00:25]}  h6 {[%clk 0:00:07]} 30. Qe5 {[%clk 0:00:25]}  Rd7 {[%clk 0:00:03]} 31. Rg4 {[%clk 0:00:24]} 1-0


[Site "https://www.chess.com"]

[Event "Titled Tuesday Blitz July 05 Late 2022"]
[White "Hansen, Eric"]
[Black "Tatarinov, Dmitry"]
[WhiteFideId "2606771"]
[BlackFideId "24160067"]
[WhiteElo "2568"]
[BlackElo "2302"]
[Result "1-0"]
[Round "02"]
[TimeControl "180+1"]
[Date "2022.07.05"]
[WhiteClock "0:02:25"]
[BlackClock "0:00:59"]

1. g3 {[%clk 0:02:59]}  Nf6 {[%clk 0:02:59]} 2. Bg2 {[%clk 0:03:00]}  g6 {[%clk 0:03:00]} 3. b3 {[%clk 0:03:00]}  Bg7 {[%clk 0:03:00]} 4. Bb2 {[%clk 0:03:01]}  O-O {[%clk 0:03:01]} 5. c4 {[%clk 0:03:02]}  c5 {[%clk 0:03:01]} 6. Nf3 {[%clk 0:03:02]}  Nc6 {[%clk 0:03:01]} 7. O-O {[%clk 0:03:02]}  d6 {[%clk 0:03:01]} 8. d4 {[%clk 0:03:02]}  cxd4 {[%clk 0:02:42]} 9. Nxd4 {[%clk 0:03:02]}  Bd7 {[%clk 0:02:43]} 10. e3 {[%clk 0:02:55]}  Qc8 {[%clk 0:02:42]} 11. Nc3 {[%clk 0:02:54]}  Bh3 {[%clk 0:02:40]} 12. Rc1 {[%clk 0:02:54]}  Bxg2 {[%clk 0:02:40]} 13. Kxg2 {[%clk 0:02:55]}  Nxd4 {[%clk 0:02:39]} 14. exd4 {[%clk 0:02:51]}  e6 {[%clk 0:02:25]} 15. Qf3 {[%clk 0:02:51]}  Qc6 {[%clk 0:02:14]} 16. d5 {[%clk 0:02:45]}  exd5 {[%clk 0:02:13]} 17. Nxd5 {[%clk 0:02:41]}  Nxd5 {[%clk 0:02:11]} 18. cxd5 {[%clk 0:02:41]}  Qd7 {[%clk 0:02:08]} 19. Bxg7 {[%clk 0:02:39]}  Kxg7 {[%clk 0:02:09]} 20. Qc3+ {[%clk 0:02:35]}  Kg8 {[%clk 0:02:09]} 21. Qf6 {[%clk 0:02:34]}  Rfe8 {[%clk 0:01:51]} 22. Rfe1 {[%clk 0:02:32]}  h5 {[%clk 0:01:45]} 23. h4 {[%clk 0:02:30]}  Rxe1 {[%clk 0:01:15]} 24. Rxe1 {[%clk 0:02:30]}  Re8 {[%clk 0:01:13]} 25. Rxe8+ {[%clk 0:02:31]}  Qxe8 {[%clk 0:01:14]} 26. Qxd6 {[%clk 0:02:32]}  Qe4+ {[%clk 0:01:12]} 27. Kh2 {[%clk 0:02:32]}  Qf3 {[%clk 0:01:12]} 28. Qc5 {[%clk 0:02:29]}  b6 {[%clk 0:01:05]} 29. Qd4 {[%clk 0:02:28]}  Kf8 {[%clk 0:01:03]} 30. d6 {[%clk 0:02:23]}  Ke8 {[%clk 0:01:01]} 31. Qe5+ {[%clk 0:02:23]}  Kd7 {[%clk 0:00:59]} 32. Qe7+ {[%clk 0:02:23]}  Kc6 {[%clk 0:00:59]} 33. Qc7+ {[%clk 0:02:24]}  Kb5 {[%clk 0:00:59]} 34. Qc4+ {[%clk 0:02:24]}  Ka5 {[%clk 0:00:59]} 35. Qa4# {[%clk 0:02:25]} 1-0


[Site "https://www.chess.com"]

[Event "Titled Tuesday Blitz July 05 Late 2022"]
[White "He, Anthony"]
[Black "Papp, Levente"]
[WhiteFideId "2088215"]
[BlackFideId "751243"]
[WhiteElo "2409"]
[BlackElo "2308"]
[Result "1-0"]
[Round "02"]
[TimeControl "180+1"]
[Date "2022.07.05"]
[WhiteClock "0:00:50"]
[BlackClock "0:00:07"]

1. d4 {[%clk 0:02:59]}  e6 {[%clk 0:02:59]} 2. c4 {[%clk 0:02:55]}  d5 {[%clk 0:02:59]} 3. Nf3 {[%clk 0:02:55]}  Nf6 {[%clk 0:02:59]} 4. Bg5 {[%clk 0:02:55]}  h6 {[%clk 0:02:58]} 5. Bh4 {[%clk 0:02:54]}  g5 {[%clk 0:02:53]} 6. Bg3 {[%clk 0:02:53]}  Bg7 {[%clk 0:02:48]} 7. e3 {[%clk 0:02:53]}  O-O {[%clk 0:02:39]} 8. Nc3 {[%clk 0:02:53]}  a6 {[%clk 0:02:27]} 9. c5 {[%clk 0:02:36]}  b6 {[%clk 0:02:20]} 10. cxb6 {[%clk 0:02:35]}  cxb6 {[%clk 0:02:19]} 11. Bd3 {[%clk 0:02:36]}  Nc6 {[%clk 0:02:13]} 12. Rc1 {[%clk 0:02:36]}  Bb7 {[%clk 0:02:10]} 13. O-O {[%clk 0:02:36]}  b5 {[%clk 0:01:45]} 14. h4 {[%clk 0:02:29]}  Nh5 {[%clk 0:01:28]} 15. Be5 {[%clk 0:02:11]}  g4 {[%clk 0:01:25]} 16. Bxg7 {[%clk 0:02:10]}  Kxg7 {[%clk 0:01:19]} 17. Nh2 {[%clk 0:02:05]}  f5 {[%clk 0:01:15]} 18. g3 {[%clk 0:02:05]}  e5 {[%clk 0:01:09]} 19. Nxg4 {[%clk 0:01:49]}  e4 {[%clk 0:00:52]} 20. Bc2 {[%clk 0:01:37]}  Qd6 {[%clk 0:00:32]} 21. Ne5 {[%clk 0:01:28]}  Nf6 {[%clk 0:00:32]} 22. Nxc6 {[%clk 0:01:23]}  Bxc6 {[%clk 0:00:33]} 23. Bb3 {[%clk 0:01:23]}  Be8 {[%clk 0:00:23]} 24. Qd2 {[%clk 0:01:16]}  Bh5 {[%clk 0:00:22]} 25. Bd1 {[%clk 0:01:17]}  Bg4 {[%clk 0:00:17]} 26. Ne2 {[%clk 0:01:13]}  Nh5 {[%clk 0:00:14]} 27. Nf4 {[%clk 0:01:12]}  Nxf4 {[%clk 0:00:14]} 28. exf4 {[%clk 0:01:13]}  h5 {[%clk 0:00:14]} 29. Bxg4 {[%clk 0:01:11]}  hxg4 {[%clk 0:00:14]} 30. Rc5 {[%clk 0:01:11]}  Rac8 {[%clk 0:00:14]} 31. Rfc1 {[%clk 0:01:11]}  Rxc5 {[%clk 0:00:14]} 32. Rxc5 {[%clk 0:01:07]}  Rd8 {[%clk 0:00:14]} 33. Qc3 {[%clk 0:01:07]}  Rd7 {[%clk 0:00:11]} 34. Rc6 {[%clk 0:01:05]}  Qe7 {[%clk 0:00:09]} 35. h5 {[%clk 0:01:03]}  b4 {[%clk 0:00:07]} 36. Qc2 {[%clk 0:00:59]}  a5 {[%clk 0:00:08]} 37. Rg6+ {[%clk 0:00:49]}  Kh7 {[%clk 0:00:08]} 38. Qc6 {[%clk 0:00:50]}  e3 {[%clk 0:00:07]} 39. Rh6+ {[%clk 0:00:50]}  Kg8 {[%clk 0:00:07]} 40. Qg6+ {[%clk 0:00:49]}  Qg7 {[%clk 0:00:07]} 41. Qe8+ {[%clk 0:00:50]}  Qf8 {[%clk 0:00:07]} 42. Rh8+ {[%clk 0:00:50]} 1-0


[Site "https://www.chess.com"]

[Event "Titled Tuesday Blitz July 05 Late 2022"]
[White "Hu, Merric"]
[Black "Yuan, Qingyu"]
[WhiteFideId "30906660"]
[BlackFideId "8609772"]
[WhiteElo "1912"]
[BlackElo "2359"]
[Result "0-1"]
[Round "02"]
[TimeControl "180+1"]
[Date "2022.07.06"]
[WhiteClock "0:00:07"]
[BlackClock "0:00:22"]

1. e4 {[%clk 0:03:00]}  c6 {[%clk 0:02:59]} 2. Nf3 {[%clk 0:02:58]}  d5 {[%clk 0:03:00]} 3. d3 {[%clk 0:02:59]}  dxe4 {[%clk 0:03:00]} 4. dxe4 {[%clk 0:03:00]}  Qxd1+ {[%clk 0:03:00]} 5. Kxd1 {[%clk 0:03:01]}  Nf6 {[%clk 0:03:01]} 6. Nc3 {[%clk 0:02:59]}  g6 {[%clk 0:02:39]} 7. Be2 {[%clk 0:02:57]}  Bg7 {[%clk 0:02:38]} 8. h3 {[%clk 0:02:45]}  O-O {[%clk 0:02:38]} 9. Be3 {[%clk 0:02:45]}  b5 {[%clk 0:02:27]} 10. a3 {[%clk 0:02:29]}  Nbd7 {[%clk 0:02:25]} 11. e5 {[%clk 0:02:20]}  Nd5 {[%clk 0:02:11]} 12. Nxd5 {[%clk 0:02:14]}  cxd5 {[%clk 0:02:11]} 13. Bd4 {[%clk 0:02:06]}  a6 {[%clk 0:02:02]} 14. Kd2 {[%clk 0:01:43]}  Bb7 {[%clk 0:02:00]} 15. Rhd1 {[%clk 0:01:42]}  Rfc8 {[%clk 0:02:00]} 16. c3 {[%clk 0:01:36]}  Nc5 {[%clk 0:02:00]} 17. Ke1 {[%clk 0:01:27]}  e6 {[%clk 0:01:54]} 18. Bxc5 {[%clk 0:01:09]}  Rxc5 {[%clk 0:01:54]} 19. a4 {[%clk 0:01:09]}  bxa4 {[%clk 0:01:29]} 20. Rxa4 {[%clk 0:01:10]}  Rb8 {[%clk 0:01:22]} 21. Rd2 {[%clk 0:00:52]}  a5 {[%clk 0:01:17]} 22. g4 {[%clk 0:00:46]}  h6 {[%clk 0:01:14]} 23. h4 {[%clk 0:00:45]}  g5 {[%clk 0:01:13]} 24. hxg5 {[%clk 0:00:44]}  hxg5 {[%clk 0:01:14]} 25. Bd3 {[%clk 0:00:39]}  Bc6 {[%clk 0:01:10]} 26. Ra2 {[%clk 0:00:36]}  a4 {[%clk 0:01:05]} 27. Ke2 {[%clk 0:00:36]}  Be8 {[%clk 0:01:05]} 28. Bc2 {[%clk 0:00:34]}  Rc4 {[%clk 0:01:01]} 29. Rd4 {[%clk 0:00:31]}  Bb5 {[%clk 0:01:01]} 30. Bd3 {[%clk 0:00:30]}  Rc5 {[%clk 0:00:58]} 31. Bxb5 {[%clk 0:00:20]}  Rcxb5 {[%clk 0:00:59]} 32. Rdxa4 {[%clk 0:00:20]}  Rxb2+ {[%clk 0:00:59]} 33. Rxb2 {[%clk 0:00:20]}  Rxb2+ {[%clk 0:01:00]} 34. Ke3 {[%clk 0:00:20]}  Rc2 {[%clk 0:00:49]} 35. Nxg5 {[%clk 0:00:13]}  Rxc3+ {[%clk 0:00:32]} 36. Kd4 {[%clk 0:00:13]}  Rc7 {[%clk 0:00:25]} 37. f4 {[%clk 0:00:13]}  Bh6 {[%clk 0:00:22]} 38. Rb4 {[%clk 0:00:11]}  Bxg5 {[%clk 0:00:22]} 39. fxg5 {[%clk 0:00:12]}  Kg7 {[%clk 0:00:23]} 40. Ke3 {[%clk 0:00:13]}  Kg6 {[%clk 0:00:23]} 41. Rf4 {[%clk 0:00:11]}  Kxg5 {[%clk 0:00:22]} 42. Rd4 {[%clk 0:00:08]}  Rc3+ {[%clk 0:00:22]} 43. Kd2 {[%clk 0:00:07]}  Rc4 {[%clk 0:00:22]} 0-1


[Site "https://www.chess.com"]

[Event "Titled Tuesday Blitz July 05 Late 2022"]
[White "Jian, Alex"]
[Black "Ward, Ieuan C"]
[WhiteFideId "30901022"]
[BlackFideId "406627"]
[WhiteElo "2095"]
[BlackElo "2282"]
[Result "1/2-1/2"]
[Round "02"]
[TimeControl "180+1"]
[Date "2022.07.06"]
[WhiteClock "0:00:03"]
[BlackClock "0:00:15"]

1. Nf3 {[%clk 0:03:00]}  Nf6 {[%clk 0:02:59]} 2. b3 {[%clk 0:03:00]}  e6 {[%clk 0:02:58]} 3. Bb2 {[%clk 0:03:00]}  d5 {[%clk 0:02:59]} 4. e3 {[%clk 0:03:00]}  Be7 {[%clk 0:03:00]} 5. Ne5 {[%clk 0:02:59]}  O-O {[%clk 0:02:59]} 6. Bd3 {[%clk 0:02:59]}  c5 {[%clk 0:02:59]} 7. O-O {[%clk 0:02:58]}  Nc6 {[%clk 0:02:59]} 8. f4 {[%clk 0:02:58]}  Nd7 {[%clk 0:02:53]} 9. Nxd7 {[%clk 0:02:18]}  Bxd7 {[%clk 0:02:50]} 10. Bxh7+ {[%clk 0:01:55]}  Kxh7 {[%clk 0:02:40]} 11. Qh5+ {[%clk 0:01:54]}  Kg8 {[%clk 0:02:40]} 12. Bxg7 {[%clk 0:01:54]}  Kxg7 {[%clk 0:02:35]} 13. Qg4+ {[%clk 0:01:46]}  Bg5 {[%clk 0:01:59]} 14. fxg5 {[%clk 0:01:14]}  Ne5 {[%clk 0:01:56]} 15. Qg3 {[%clk 0:01:09]}  Ng6 {[%clk 0:01:46]} 16. h4 {[%clk 0:01:07]}  Rh8 {[%clk 0:01:46]} 17. h5 {[%clk 0:00:52]}  Rxh5 {[%clk 0:01:43]} 18. Qf3 {[%clk 0:00:52]}  Rxg5 {[%clk 0:01:18]} 19. Qxf7+ {[%clk 0:00:51]}  Kh6 {[%clk 0:01:15]} 20. Nc3 {[%clk 0:00:26]}  Qe8 {[%clk 0:00:46]} 21. Qf3 {[%clk 0:00:11]}  Kg7 {[%clk 0:00:24]} 22. Qf6+ {[%clk 0:00:10]}  Kh6 {[%clk 0:00:24]} 23. Qf3 {[%clk 0:00:10]}  Rf5 {[%clk 0:00:23]} 24. Qh3+ {[%clk 0:00:10]}  Rh5 {[%clk 0:00:20]} 25. Qf3 {[%clk 0:00:10]}  Qh8 {[%clk 0:00:19]} 26. g4 {[%clk 0:00:05]}  Rh4 {[%clk 0:00:16]} 27. Kg2 {[%clk 0:00:05]}  Rf8 {[%clk 0:00:15]} 28. Qe2 {[%clk 0:00:05]}  Kg7 {[%clk 0:00:15]} 29. Rh1 {[%clk 0:00:04]}  Rf6 {[%clk 0:00:10]} 30. Kg3 {[%clk 0:00:04]}  Rf7 {[%clk 0:00:09]} 31. d3 {[%clk 0:00:03]}  Qh6 {[%clk 0:00:09]} 32. Rag1 {[%clk 0:00:02]}  Qg5 {[%clk 0:00:08]} 33. Nd1 {[%clk 0:00:02]}  e5 {[%clk 0:00:08]} 34. Nf2 {[%clk 0:00:02]}  Rxf2 {[%clk 0:00:07]} 35. Kxf2 {[%clk 0:00:02]}  Rxg4 {[%clk 0:00:06]} 36. Rxg4 {[%clk 0:00:01]}  Qxg4 {[%clk 0:00:06]} 37. Qe1 {[%clk 0:00:01]}  Qf5+ {[%clk 0:00:06]} 38. Ke2 {[%clk 0:00:02]}  Qg4+ {[%clk 0:00:06]} 39. Kd2 {[%clk 0:00:02]}  e4 {[%clk 0:00:06]} 40. Rg1 {[%clk 0:00:02]}  Qf5 {[%clk 0:00:06]} 41. Qe2 {[%clk 0:00:03]}  exd3 {[%clk 0:00:06]} 42. cxd3 {[%clk 0:00:04]}  c4 {[%clk 0:00:07]} 43. bxc4 {[%clk 0:00:03]}  dxc4 {[%clk 0:00:08]} 44. e4 {[%clk 0:00:04]}  Qf4+ {[%clk 0:00:07]} 45. Kc2 {[%clk 0:00:04]}  cxd3+ {[%clk 0:00:08]} 46. Qxd3 {[%clk 0:00:05]}  Bc6 {[%clk 0:00:08]} 47. Rd1 {[%clk 0:00:05]}  Qxe4 {[%clk 0:00:08]} 48. Qxe4 {[%clk 0:00:04]}  Bxe4+ {[%clk 0:00:09]} 49. Kc3 {[%clk 0:00:04]}  Bc6 {[%clk 0:00:09]} 50. Rd6 {[%clk 0:00:04]}  Kf7 {[%clk 0:00:10]} 51. Rd4 {[%clk 0:00:05]}  Ne7 {[%clk 0:00:11]} 52. Rf4+ {[%clk 0:00:05]}  Ke8 {[%clk 0:00:11]} 53. Kb2 {[%clk 0:00:05]}  Kd7 {[%clk 0:00:12]} 54. Rd4+ {[%clk 0:00:05]}  Nd5 {[%clk 0:00:12]} 55. a3 {[%clk 0:00:05]}  Kd6 {[%clk 0:00:13]} 56. Rd2 {[%clk 0:00:05]}  Kc5 {[%clk 0:00:13]} 57. Kb3 {[%clk 0:00:05]}  b5 {[%clk 0:00:13]} 58. Rc2+ {[%clk 0:00:05]}  Kb6 {[%clk 0:00:14]} 59. Rd2 {[%clk 0:00:06]}  a5 {[%clk 0:00:14]} 60. Rh2 {[%clk 0:00:05]}  a4+ {[%clk 0:00:14]} 61. Kb2 {[%clk 0:00:06]}  Kc5 {[%clk 0:00:15]} 62. Rc2+ {[%clk 0:00:06]}  Kb6 {[%clk 0:00:15]} 63. Rd2 {[%clk 0:00:06]}  Nc7 {[%clk 0:00:15]} 64. Rc2 {[%clk 0:00:06]}  Na6 {[%clk 0:00:16]} 65. Rd2 {[%clk 0:00:06]}  Nc5 {[%clk 0:00:16]} 66. Rc2 {[%clk 0:00:06]}  Nb3 {[%clk 0:00:16]} 67. Rc3 {[%clk 0:00:06]}  Bd5 {[%clk 0:00:15]} 68. Rg3 {[%clk 0:00:05]}  Bc4 {[%clk 0:00:16]} 69. Kc3 {[%clk 0:00:04]}  Nc5 {[%clk 0:00:15]} 70. Rg6+ {[%clk 0:00:04]}  Ka5 {[%clk 0:00:15]} 71. Rh6 {[%clk 0:00:03]}  Ne4+ {[%clk 0:00:15]} 72. Kb2 {[%clk 0:00:03]}  Nd2 {[%clk 0:00:15]} 73. Kc3 {[%clk 0:00:03]}  Nb1+ {[%clk 0:00:15]} 74. Kb2 {[%clk 0:00:03]}  Nd2 {[%clk 0:00:15]} 75. Kc3 {[%clk 0:00:03]}  Ne4+ {[%clk 0:00:16]} 76. Kb2 {[%clk 0:00:03]}  Nc5 {[%clk 0:00:16]} 77. Rh5 {[%clk 0:00:03]}  Na6 {[%clk 0:00:16]} 78. Rg5 {[%clk 0:00:03]}  Nc7 {[%clk 0:00:15]} 79. Rh5 {[%clk 0:00:03]}  Nd5 {[%clk 0:00:15]} 80. Rg5 {[%clk 0:00:03]}  b4 {[%clk 0:00:15]} 81. axb4+ {[%clk 0:00:03]}  Kxb4 {[%clk 0:00:16]} 82. Rxd5 {[%clk 0:00:02]}  Bxd5 {[%clk 0:00:15]} 83. Ka1 {[%clk 0:00:03]}  a3 {[%clk 0:00:14]} 84. Kb1 {[%clk 0:00:03]}  a2+ {[%clk 0:00:15]} 85. Ka1 {[%clk 0:00:03]}  Kb3 {[%clk 0:00:15]} 1/2-1/2


[Site "https://www.chess.com"]

[Event "Titled Tuesday Blitz July 05 Late 2022"]
[White "Kozlov, Gennady"]
[Black "Riehle, Marco"]
[WhiteFideId "4191668"]
[BlackFideId "12904392"]
[WhiteElo "2392"]
[BlackElo "2462"]
[Result "0-1"]
[Round "02"]
[TimeControl "180+1"]
[Date "2022.07.05"]
[WhiteClock "0:01:52"]
[BlackClock "0:01:37"]

1. d4 {[%clk 0:03:00]}  d5 {[%clk 0:02:59]} 2. c4 {[%clk 0:02:59]}  e6 {[%clk 0:03:00]} 3. Nc3 {[%clk 0:02:59]}  c5 {[%clk 0:03:00]} 4. Nf3 {[%clk 0:02:58]}  cxd4 {[%clk 0:03:00]} 5. Nxd4 {[%clk 0:02:58]}  e5 {[%clk 0:03:00]} 6. Ndb5 {[%clk 0:02:56]}  a6 {[%clk 0:02:59]} 7. Na3 {[%clk 0:02:56]}  d4 {[%clk 0:03:00]} 8. Nd5 {[%clk 0:02:55]}  Nf6 {[%clk 0:03:00]} 9. Nxf6+ {[%clk 0:02:53]}  Qxf6 {[%clk 0:03:01]} 10. e3 {[%clk 0:02:52]}  Bb4+ {[%clk 0:02:53]} 11. Bd2 {[%clk 0:02:52]}  dxe3 {[%clk 0:02:53]} 12. fxe3 {[%clk 0:02:51]}  Bxd2+ {[%clk 0:02:53]} 13. Qxd2 {[%clk 0:02:51]}  O-O {[%clk 0:02:53]} 14. Bd3 {[%clk 0:02:48]}  Nc6 {[%clk 0:02:50]} 15. O-O-O {[%clk 0:02:47]}  Be6 {[%clk 0:02:43]} 16. g4 {[%clk 0:02:47]}  Rfd8 {[%clk 0:02:42]} 17. g5 {[%clk 0:02:46]}  Qe7 {[%clk 0:02:41]} 18. Qg2 {[%clk 0:02:37]}  Nb4 {[%clk 0:02:35]} 19. Be4 {[%clk 0:02:34]}  Nxa2+ {[%clk 0:02:19]} 20. Kc2 {[%clk 0:02:31]}  Qb4 {[%clk 0:02:04]} 21. Bd5 {[%clk 0:02:31]}  Bxd5 {[%clk 0:01:59]} 22. Rxd5 {[%clk 0:02:31]}  Qb6 {[%clk 0:01:57]} 23. Rxe5 {[%clk 0:02:20]}  Qd6 {[%clk 0:01:51]} 24. Qe4 {[%clk 0:02:10]}  Nb4+ {[%clk 0:01:51]} 25. Kb3 {[%clk 0:02:09]}  a5 {[%clk 0:01:49]} 26. Qd4 {[%clk 0:01:58]}  Qc6 {[%clk 0:01:44]} 27. Rd5 {[%clk 0:01:52]}  Nxd5 {[%clk 0:01:38]} 28. cxd5 {[%clk 0:01:51]}  Rxd5 {[%clk 0:01:39]} 29. Qc4 {[%clk 0:01:51]}  Qxc4+ {[%clk 0:01:37]} 30. Kxc4 {[%clk 0:01:52]} 0-1


[Site "https://www.chess.com"]